[Event "Titled Tuesday Blitz April 18 Early 2023"]
[White "Kovalenko, Igor"]
[Black "Deac, Bogdan-Daniel"]
[WhiteFideId "14117908"]
[BlackFideId "1226380"]
[WhiteElo "2574"]
[BlackElo "2649"]
[Result "1-0"]
[Round "06"]
[TimeControl "180+2"]
[Date "2023.04.18"]
[WhiteClock "0:01:10"]
[BlackClock "0:00:01"]

1. c4 {[%clk 0:03:00]}  Nf6 {[%clk 0:02:58]} 2. Nc3 {[%clk 0:02:59]}  c5 {[%clk 0:02:57]} 3. Nf3 {[%clk 0:02:59]}  Nc6 {[%clk 0:02:57]} 4. g3 {[%clk 0:02:59]}  e6 {[%clk 0:02:57]} 5. Bg2 {[%clk 0:02:58]}  d5 {[%clk 0:02:57]} 6. cxd5 {[%clk 0:02:57]}  exd5 {[%clk 0:02:58]} 7. d4 {[%clk 0:02:57]}  cxd4 {[%clk 0:02:59]} 8. Nxd4 {[%clk 0:02:58]}  Bc5 {[%clk 0:03:00]} 9. Nb3 {[%clk 0:02:58]}  Bb6 {[%clk 0:03:00]} 10. O-O {[%clk 0:02:57]}  d4 {[%clk 0:02:59]} 11. Na4 {[%clk 0:02:57]}  O-O {[%clk 0:03:00]} 12. Bg5 {[%clk 0:02:57]}  Re8 {[%clk 0:03:00]} 13. Re1 {[%clk 0:02:45]}  h6 {[%clk 0:02:58]} 14. Bxf6 {[%clk 0:02:45]}  Qxf6 {[%clk 0:02:59]} 15. Nxb6 {[%clk 0:02:45]}  axb6 {[%clk 0:03:00]} 16. Bxc6 {[%clk 0:02:44]}  bxc6 {[%clk 0:03:01]} 17. Qxd4 {[%clk 0:02:44]}  Qd8 {[%clk 0:03:01]} 18. a3 {[%clk 0:02:34]}  Qc7 {[%clk 0:02:48]} 19. Rad1 {[%clk 0:02:34]}  c5 {[%clk 0:02:41]} 20. Qd6 {[%clk 0:02:33]}  Qb7 {[%clk 0:02:40]} 21. Nd2 {[%clk 0:02:29]}  Bh3 {[%clk 0:02:29]} 22. Nf3 {[%clk 0:02:28]}  Ra4 {[%clk 0:01:17]} 23. Qd5 {[%clk 0:02:25]}  Qc7 {[%clk 0:01:13]} 24. Nd2 {[%clk 0:02:02]}  Rd4 {[%clk 0:01:05]} 25. Qb3 {[%clk 0:01:51]}  Qc6 {[%clk 0:00:29]} 26. f3 {[%clk 0:01:51]}  Red8 {[%clk 0:00:09]} 27. Nf1 {[%clk 0:01:45]}  Qd6 {[%clk 0:00:06]} 28. Rxd4 {[%clk 0:01:45]}  Qxd4+ {[%clk 0:00:07]} 29. Ne3 {[%clk 0:01:46]}  Re8 {[%clk 0:00:04]} 30. Kf2 {[%clk 0:01:46]}  c4 {[%clk 0:00:04]} 31. Qc3 {[%clk 0:01:45]}  Qc5 {[%clk 0:00:05]} 32. Rd1 {[%clk 0:01:46]}  b5 {[%clk 0:00:05]} 33. Qd4 {[%clk 0:01:45]}  Qh5 {[%clk 0:00:06]} 34. Qd5 {[%clk 0:01:34]}  Re5 {[%clk 0:00:05]} 35. Qd8+ {[%clk 0:01:32]}  Kh7 {[%clk 0:00:05]} 36. Qh4 {[%clk 0:01:31]}  Qxh4 {[%clk 0:00:05]} 37. gxh4 {[%clk 0:01:32]}  Be6 {[%clk 0:00:05]} 38. Rd4 {[%clk 0:01:32]}  Rc5 {[%clk 0:00:05]} 39. Nd1 {[%clk 0:01:32]}  b4 {[%clk 0:00:06]} 40. axb4 {[%clk 0:01:32]}  Rb5 {[%clk 0:00:06]} 41. Nc3 {[%clk 0:01:28]}  Rxb4 {[%clk 0:00:06]} 42. Rd2 {[%clk 0:01:29]}  Kg6 {[%clk 0:00:06]} 43. e4 {[%clk 0:01:28]}  Kh5 {[%clk 0:00:05]} 44. Kg3 {[%clk 0:01:28]}  g5 {[%clk 0:00:06]} 45. hxg5 {[%clk 0:01:29]}  hxg5 {[%clk 0:00:07]} 46. Ne2 {[%clk 0:01:21]}  Rb6 {[%clk 0:00:04]} 47. Nd4 {[%clk 0:01:21]}  Rd6 {[%clk 0:00:04]} 48. f4 {[%clk 0:01:20]}  gxf4+ {[%clk 0:00:03]} 49. Kxf4 {[%clk 0:01:21]}  Rb6 {[%clk 0:00:04]} 50. Nxe6 {[%clk 0:01:19]}  fxe6 {[%clk 0:00:02]} 51. Ke5 {[%clk 0:01:17]}  Kg4 {[%clk 0:00:03]} 52. Rg2+ {[%clk 0:01:14]}  Kf3 {[%clk 0:00:03]} 53. Rc2 {[%clk 0:01:14]}  Ke3 {[%clk 0:00:02]} 54. h4 {[%clk 0:01:11]}  Kd3 {[%clk 0:00:02]} 55. Rh2 {[%clk 0:01:09]}  Rb5+ {[%clk 0:00:02]} 56. Kxe6 {[%clk 0:01:09]}  Kxe4 {[%clk 0:00:02]} 57. h5 {[%clk 0:01:09]}  Rb6+ {[%clk 0:00:03]} 58. Kf7 {[%clk 0:01:09]}  Rb7+ {[%clk 0:00:03]} 59. Kg6 {[%clk 0:01:09]}  Rb6+ {[%clk 0:00:03]} 60. Kg5 {[%clk 0:01:10]}  Rb5+ {[%clk 0:00:03]} 61. Kg4 {[%clk 0:01:10]}  Rb8 {[%clk 0:00:01]} 62. h6 {[%clk 0:01:10]}  Rg8+ {[%clk 0:00:01]} 63. Kh5 {[%clk 0:01:10]}  Kf5 {[%clk 0:00:02]} 64. Rf2+ {[%clk 0:01:10]}  Ke6 {[%clk 0:00:02]} 65. h7 {[%clk 0:01:11]}  Rh8 {[%clk 0:00:02]} 66. Kg6 {[%clk 0:01:11]}  Rc8 {[%clk 0:00:01]} 67. Re2+ {[%clk 0:01:10]} 1-0


[Site "https://www.chess.com"]

[Event "Titled Tuesday Blitz April 18 Early 2023"]
[White "Drozdowski, Kacper"]
[Black "Bacallao Alonso, Yusnel"]
[WhiteFideId "1136720"]
[BlackFideId "3507416"]
[WhiteElo "2497"]
[BlackElo "2561"]
[Result "0-1"]
[Round "06"]
[TimeControl "180+2"]
[Date "2023.04.18"]
[WhiteClock "0:00:10"]
[BlackClock "0:00:37"]

1. e4 {[%clk 0:03:00]}  c6 {[%clk 0:02:59]} 2. d4 {[%clk 0:03:00]}  d5 {[%clk 0:03:00]} 3. e5 {[%clk 0:02:59]}  c5 {[%clk 0:03:00]} 4. dxc5 {[%clk 0:02:59]}  e6 {[%clk 0:03:01]} 5. Be3 {[%clk 0:02:58]}  Nd7 {[%clk 0:03:00]} 6. Bb5 {[%clk 0:02:57]}  Qc7 {[%clk 0:02:57]} 7. Nf3 {[%clk 0:02:52]}  Bxc5 {[%clk 0:02:55]} 8. Bxc5 {[%clk 0:02:52]}  Qxc5 {[%clk 0:02:56]} 9. Nc3 {[%clk 0:02:52]}  Ne7 {[%clk 0:02:56]} 10. Qd4 {[%clk 0:02:46]}  Qc7 {[%clk 0:02:44]} 11. Bxd7+ {[%clk 0:02:35]}  Bxd7 {[%clk 0:02:45]} 12. O-O {[%clk 0:02:36]}  O-O {[%clk 0:02:40]} 13. Rfe1 {[%clk 0:02:27]}  Rfc8 {[%clk 0:02:39]} 14. Rad1 {[%clk 0:02:25]}  b5 {[%clk 0:02:38]} 15. a3 {[%clk 0:02:24]}  a5 {[%clk 0:02:38]} 16. Qf4 {[%clk 0:02:17]}  Ng6 {[%clk 0:02:32]} 17. Qg4 {[%clk 0:02:01]}  Rab8 {[%clk 0:02:16]} 18. Rd4 {[%clk 0:01:39]}  Qb6 {[%clk 0:02:15]} 19. h4 {[%clk 0:01:29]}  h6 {[%clk 0:02:13]} 20. h5 {[%clk 0:01:29]}  Ne7 {[%clk 0:02:13]} 21. Rd2 {[%clk 0:01:24]}  Rc4 {[%clk 0:02:08]} 22. Qh3 {[%clk 0:01:19]}  b4 {[%clk 0:02:04]} 23. Ne2 {[%clk 0:01:15]}  bxa3 {[%clk 0:01:58]} 24. bxa3 {[%clk 0:01:16]}  Qc5 {[%clk 0:01:50]} 25. Ra1 {[%clk 0:01:14]}  Rxc2 {[%clk 0:01:47]} 26. Rxc2 {[%clk 0:01:15]}  Qxc2 {[%clk 0:01:48]} 27. Ned4 {[%clk 0:01:09]}  Qb2 {[%clk 0:01:47]} 28. Re1 {[%clk 0:01:07]}  Qxa3 {[%clk 0:01:47]} 29. Qh4 {[%clk 0:01:05]}  Kf8 {[%clk 0:01:15]} 30. g4 {[%clk 0:01:04]}  Rb4 {[%clk 0:01:14]} 31. Qh1 {[%clk 0:00:40]}  Qc3 {[%clk 0:01:08]} 32. Rd1 {[%clk 0:00:34]}  a4 {[%clk 0:01:04]} 33. g5 {[%clk 0:00:33]}  Nf5 {[%clk 0:00:55]} 34. Nxf5 {[%clk 0:00:30]}  exf5 {[%clk 0:00:56]} 35. gxh6 {[%clk 0:00:28]}  Rg4+ {[%clk 0:00:56]} 36. Kh2 {[%clk 0:00:27]}  gxh6 {[%clk 0:00:56]} 37. Rxd5 {[%clk 0:00:22]}  Bc6 {[%clk 0:00:45]} 38. Rd8+ {[%clk 0:00:22]}  Kg7 {[%clk 0:00:44]} 39. e6 {[%clk 0:00:19]}  Qf6 {[%clk 0:00:41]} 40. Qd1 {[%clk 0:00:10]}  Bxf3 {[%clk 0:00:36]} 41. Qxf3 {[%clk 0:00:10]}  Qh4+ {[%clk 0:00:37]} 42. Qh3 {[%clk 0:00:10]}  Qxf2+ {[%clk 0:00:37]} 43. Kh1 {[%clk 0:00:10]}  Qg1# {[%clk 0:00:37]} 0-1


[Site "https://www.chess.com"]

[Event "Titled Tuesday Blitz April 18 Early 2023"]
[White "Drygalov, Andrey"]
[Black "Naroditsky, Daniel"]
[WhiteFideId "24171735"]
[BlackFideId "2026961"]
[WhiteElo "2466"]
[BlackElo "2633"]
[Result "1-0"]
[Round "06"]
[TimeControl "180+2"]
[Date "2023.04.18"]
[WhiteClock "0:00:06"]
[BlackClock "0:00:03"]

1. e4 {[%clk 0:03:00]}  c5 {[%clk 0:02:59]} 2. Nf3 {[%clk 0:02:59]}  d6 {[%clk 0:03:00]} 3. d4 {[%clk 0:02:59]}  cxd4 {[%clk 0:03:00]} 4. Nxd4 {[%clk 0:03:00]}  Nf6 {[%clk 0:03:01]} 5. Nc3 {[%clk 0:03:01]}  a6 {[%clk 0:03:02]} 6. Be3 {[%clk 0:03:01]}  e5 {[%clk 0:03:02]} 7. Nb3 {[%clk 0:03:02]}  Be6 {[%clk 0:03:02]} 8. f3 {[%clk 0:03:02]}  Be7 {[%clk 0:03:03]} 9. Qd2 {[%clk 0:03:03]}  O-O {[%clk 0:03:04]} 10. O-O-O {[%clk 0:03:03]}  a5 {[%clk 0:03:04]} 11. a4 {[%clk 0:03:02]}  Nc6 {[%clk 0:03:02]} 12. Kb1 {[%clk 0:03:02]}  Nb4 {[%clk 0:03:03]} 13. g4 {[%clk 0:03:02]}  Rc8 {[%clk 0:03:02]} 14. g5 {[%clk 0:03:00]}  Ne8 {[%clk 0:02:57]} 15. h4 {[%clk 0:03:00]}  d5 {[%clk 0:02:57]} 16. Nxd5 {[%clk 0:03:00]}  Bxd5 {[%clk 0:02:37]} 17. exd5 {[%clk 0:03:00]}  Rxc2 {[%clk 0:02:37]} 18. Qe1 {[%clk 0:03:00]}  Qc8 {[%clk 0:02:28]} 19. Bd3 {[%clk 0:02:37]}  Nxd3 {[%clk 0:02:11]} 20. Rxd3 {[%clk 0:02:37]}  Nd6 {[%clk 0:02:05]} 21. Nxa5 {[%clk 0:02:06]}  Rg2 {[%clk 0:01:30]} 22. Qc3 {[%clk 0:01:34]}  Qf5 {[%clk 0:01:26]} 23. Ka2 {[%clk 0:01:34]}  Rc8 {[%clk 0:01:13]} 24. Qb3 {[%clk 0:01:34]}  Qxf3 {[%clk 0:00:50]} 25. Nxb7 {[%clk 0:01:15]}  Rxb2+ {[%clk 0:00:25]} 26. Qxb2 {[%clk 0:01:09]}  Qxh1 {[%clk 0:00:26]} 27. Bc5 {[%clk 0:00:51]}  Qe4 {[%clk 0:00:18]} 28. Qb3 {[%clk 0:00:37]}  Qe2+ {[%clk 0:00:18]} 29. Kb1 {[%clk 0:00:25]}  Nxb7 {[%clk 0:00:17]} 30. Bxe7 {[%clk 0:00:25]}  Na5 {[%clk 0:00:17]} 31. Rc3 {[%clk 0:00:17]}  Qe1+ {[%clk 0:00:09]} 32. Kb2 {[%clk 0:00:18]}  Qd2+ {[%clk 0:00:05]} 33. Qc2 {[%clk 0:00:16]}  Rb8+ {[%clk 0:00:05]} 34. Ka3 {[%clk 0:00:15]}  Qxc2 {[%clk 0:00:02]} 35. Rxc2 {[%clk 0:00:15]}  f5 {[%clk 0:00:01]} 36. gxf6 {[%clk 0:00:15]}  gxf6 {[%clk 0:00:01]} 37. Bxf6 {[%clk 0:00:15]}  e4 {[%clk 0:00:02]} 38. d6 {[%clk 0:00:15]}  Kf7 {[%clk 0:00:03]} 39. Be5 {[%clk 0:00:10]}  Ke6 {[%clk 0:00:03]} 40. Bd4 {[%clk 0:00:05]}  Rb3+ {[%clk 0:00:03]} 41. Ka2 {[%clk 0:00:05]}  Rd3 {[%clk 0:00:04]} 42. Bc5 {[%clk 0:00:05]}  Nb7 {[%clk 0:00:03]} 43. Bb4 {[%clk 0:00:05]}  Nxd6 {[%clk 0:00:03]} 44. a5 {[%clk 0:00:05]}  Nb5 {[%clk 0:00:03]} 45. a6 {[%clk 0:00:05]}  e3 {[%clk 0:00:03]} 46. Kb2 {[%clk 0:00:04]}  Rd7 {[%clk 0:00:02]} 47. Rc5 {[%clk 0:00:04]}  Nd4 {[%clk 0:00:02]} 48. Rc4 {[%clk 0:00:04]}  Kd5 {[%clk 0:00:02]} 49. Rc8 {[%clk 0:00:03]}  Ke4 {[%clk 0:00:02]} 50. Re8+ {[%clk 0:00:03]}  Kd3 {[%clk 0:00:03]} 51. Bc5 {[%clk 0:00:04]}  e2 {[%clk 0:00:02]} 52. a7 {[%clk 0:00:04]}  Rb7+ {[%clk 0:00:01]} 53. Ka2 {[%clk 0:00:03]}  Rxa7+ {[%clk 0:00:01]} 54. Bxa7 {[%clk 0:00:04]}  Nc2 {[%clk 0:00:02]} 55. Bf2 {[%clk 0:00:04]}  Kd2 {[%clk 0:00:02]} 56. Rd8+ {[%clk 0:00:03]}  Kc3 {[%clk 0:00:02]} 57. Rd7 {[%clk 0:00:03]}  e1=Q {[%clk 0:00:01]} 58. Bxe1+ {[%clk 0:00:03]}  Nxe1 {[%clk 0:00:02]} 59. Rxh7 {[%clk 0:00:04]}  Kd4 {[%clk 0:00:03]} 60. h5 {[%clk 0:00:04]}  Nf3 {[%clk 0:00:02]} 61. h6 {[%clk 0:00:04]}  Ke5 {[%clk 0:00:03]} 62. Rf7 {[%clk 0:00:04]}  Ng5 {[%clk 0:00:04]} 63. Rf1 {[%clk 0:00:04]}  Ke6 {[%clk 0:00:03]} 64. Kb3 {[%clk 0:00:04]}  Ke7 {[%clk 0:00:03]} 65. Kc4 {[%clk 0:00:05]}  Ke6 {[%clk 0:00:01]} 66. Kd4 {[%clk 0:00:04]}  Ke7 {[%clk 0:00:01]} 67. Ke3 {[%clk 0:00:04]}  Ke6 {[%clk 0:00:02]} 68. Rf4 {[%clk 0:00:03]}  Ke5 {[%clk 0:00:01]} 69. Rf8 {[%clk 0:00:03]}  Ke6 {[%clk 0:00:02]} 70. Rf1 {[%clk 0:00:03]}  Ke5 {[%clk 0:00:02]} 71. Kd3 {[%clk 0:00:03]}  Ke6 {[%clk 0:00:02]} 72. Kd4 {[%clk 0:00:04]}  Nh7 {[%clk 0:00:02]} 73. Ke4 {[%clk 0:00:03]}  Ng5+ {[%clk 0:00:02]} 74. Ke3 {[%clk 0:00:01]}  Nh7 {[%clk 0:00:02]} 75. Rf2 {[%clk 0:00:02]}  Ng5 {[%clk 0:00:02]} 76. Rf4 {[%clk 0:00:02]}  Nh7 {[%clk 0:00:02]} 77. Kf3 {[%clk 0:00:03]}  Nf6 {[%clk 0:00:01]} 78. Kg2 {[%clk 0:00:03]}  Ke5 {[%clk 0:00:01]} 79. Rf1 {[%clk 0:00:03]}  Ke6 {[%clk 0:00:02]} 80. Kg3 {[%clk 0:00:03]}  Nh7 {[%clk 0:00:02]} 81. Kh4 {[%clk 0:00:03]}  Ke7 {[%clk 0:00:01]} 82. Kh5 {[%clk 0:00:04]}  Nf8 {[%clk 0:00:01]} 83. Kg5 {[%clk 0:00:04]}  Ke8 {[%clk 0:00:01]} 84. Kf6 {[%clk 0:00:05]}  Nh7+ {[%clk 0:00:01]} 85. Kg7 {[%clk 0:00:05]}  Ng5 {[%clk 0:00:02]} 86. h7 {[%clk 0:00:06]}  Ne6+ {[%clk 0:00:03]} 87. Kg8 {[%clk 0:00:06]} 1-0


[Site "https://www.chess.com"]

[Event "Titled Tuesday Blitz April 18 Early 2023"]
[White "So, Wesley"]
[Black "Movahed, Sina"]
[WhiteFideId "5202213"]
[BlackFideId "42520835"]
[WhiteElo "2749"]
[BlackElo "2225"]
[Result "1-0"]
[Round "06"]
[TimeControl "180+2"]
[Date "2023.04.18"]
[WhiteClock "0:01:11"]
[BlackClock "0:00:34"]

1. d4 {[%clk 0:02:55]}  Nf6 {[%clk 0:02:59]} 2. Bf4 {[%clk 0:02:53]}  g6 {[%clk 0:02:53]} 3. Nc3 {[%clk 0:02:52]}  d5 {[%clk 0:02:53]} 4. Nb5 {[%clk 0:02:51]}  Na6 {[%clk 0:02:52]} 5. e3 {[%clk 0:02:52]}  Bg7 {[%clk 0:02:46]} 6. h4 {[%clk 0:02:52]}  h5 {[%clk 0:02:40]} 7. Nf3 {[%clk 0:02:51]}  O-O {[%clk 0:02:40]} 8. Ne5 {[%clk 0:02:49]}  c6 {[%clk 0:02:37]} 9. Nc3 {[%clk 0:02:47]}  c5 {[%clk 0:02:30]} 10. Bxa6 {[%clk 0:02:34]}  bxa6 {[%clk 0:02:28]} 11. O-O {[%clk 0:02:35]}  cxd4 {[%clk 0:02:27]} 12. exd4 {[%clk 0:02:36]}  Qa5 {[%clk 0:02:19]} 13. Nc6 {[%clk 0:02:33]}  Qb6 {[%clk 0:02:15]} 14. Nxe7+ {[%clk 0:02:33]}  Kh7 {[%clk 0:02:14]} 15. Nexd5 {[%clk 0:02:24]}  Nxd5 {[%clk 0:02:13]} 16. Nxd5 {[%clk 0:02:24]}  Qxb2 {[%clk 0:02:14]} 17. Rb1 {[%clk 0:02:22]}  Qxa2 {[%clk 0:02:02]} 18. Nc7 {[%clk 0:02:22]}  Bf5 {[%clk 0:02:02]} 19. Nxa8 {[%clk 0:02:12]}  Bxc2 {[%clk 0:01:56]} 20. Ra1 {[%clk 0:02:12]}  Qb3 {[%clk 0:01:53]} 21. Qd2 {[%clk 0:02:06]}  Rxa8 {[%clk 0:01:50]} 22. Rfc1 {[%clk 0:02:06]}  Bf5 {[%clk 0:01:43]} 23. Be5 {[%clk 0:01:59]}  Bh6 {[%clk 0:01:37]} 24. Bf4 {[%clk 0:01:58]}  Bg7 {[%clk 0:01:37]} 25. Be5 {[%clk 0:01:49]}  Bh6 {[%clk 0:01:36]} 26. Qc3 {[%clk 0:01:46]}  Qd5 {[%clk 0:01:24]} 27. Qc6 {[%clk 0:01:32]}  Qxc6 {[%clk 0:01:18]} 28. Rxc6 {[%clk 0:01:33]}  Bd3 {[%clk 0:01:18]} 29. Rc7 {[%clk 0:01:29]}  Kg8 {[%clk 0:01:16]} 30. Ra3 {[%clk 0:01:28]}  Bb5 {[%clk 0:01:15]} 31. Rac3 {[%clk 0:01:27]}  f5 {[%clk 0:01:10]} 32. d5 {[%clk 0:01:20]}  Bf8 {[%clk 0:01:00]} 33. d6 {[%clk 0:01:19]}  Rd8 {[%clk 0:00:52]} 34. Rxa7 {[%clk 0:01:16]}  Re8 {[%clk 0:00:45]} 35. f4 {[%clk 0:01:14]}  Rd8 {[%clk 0:00:44]} 36. Rcc7 {[%clk 0:01:13]}  Be8 {[%clk 0:00:34]} 37. Rh7 {[%clk 0:01:11]} 1-0


[Site "https://www.chess.com"]

[Event "Titled Tuesday Blitz April 18 Early 2023"]
[White "Licznerski, Lukasz"]
[Black "Bluebaum, Matthias"]
[WhiteFideId "1179250"]
[BlackFideId "24651516"]
[WhiteElo "2450"]
[BlackElo "2638"]
[Result "0-1"]
[Round "06"]
[TimeControl "180+2"]
[Date "2023.04.18"]
[WhiteClock "0:00:45"]
[BlackClock "0:01:34"]

1. e4 {[%clk 0:02:11]}  e6 {[%clk 0:03:00]} 2. d4 {[%clk 0:02:11]}  d5 {[%clk 0:03:00]} 3. Nd2 {[%clk 0:02:11]}  c5 {[%clk 0:03:01]} 4. exd5 {[%clk 0:02:12]}  Qxd5 {[%clk 0:03:02]} 5. Ngf3 {[%clk 0:02:13]}  cxd4 {[%clk 0:03:02]} 6. Bc4 {[%clk 0:02:13]}  Qd6 {[%clk 0:03:03]} 7. O-O {[%clk 0:02:13]}  Nf6 {[%clk 0:03:04]} 8. Nb3 {[%clk 0:02:14]}  Nc6 {[%clk 0:03:05]} 9. Nbxd4 {[%clk 0:02:14]}  Nxd4 {[%clk 0:03:06]} 10. Nxd4 {[%clk 0:02:14]}  Be7 {[%clk 0:03:06]} 11. c3 {[%clk 0:02:10]}  O-O {[%clk 0:03:06]} 12. Qf3 {[%clk 0:02:10]}  e5 {[%clk 0:03:07]} 13. Nf5 {[%clk 0:02:09]}  Bxf5 {[%clk 0:03:07]} 14. Qxf5 {[%clk 0:02:10]}  Qc7 {[%clk 0:03:08]} 15. Bb3 {[%clk 0:02:09]}  a5 {[%clk 0:03:08]} 16. a4 {[%clk 0:02:05]}  g6 {[%clk 0:03:06]} 17. Qd3 {[%clk 0:01:51]}  Rfd8 {[%clk 0:03:05]} 18. Qb5 {[%clk 0:01:48]}  Bc5 {[%clk 0:03:01]} 19. Be3 {[%clk 0:01:48]}  Bxe3 {[%clk 0:02:52]} 20. fxe3 {[%clk 0:01:48]}  Ra6 {[%clk 0:02:52]} 21. Rf2 {[%clk 0:01:41]}  Kg7 {[%clk 0:02:46]} 22. Raf1 {[%clk 0:01:39]}  Rd7 {[%clk 0:02:47]} 23. Qe2 {[%clk 0:01:24]}  Rad6 {[%clk 0:02:38]} 24. Bc4 {[%clk 0:01:19]}  e4 {[%clk 0:02:10]} 25. b3 {[%clk 0:01:15]}  Qc5 {[%clk 0:02:01]} 26. Rf4 {[%clk 0:01:11]}  Rd2 {[%clk 0:01:37]} 27. Qe1 {[%clk 0:01:08]}  Rd1 {[%clk 0:01:38]} 28. Qf2 {[%clk 0:00:59]}  Rxf1+ {[%clk 0:01:36]} 29. Kxf1 {[%clk 0:00:45]}  Rd1+ {[%clk 0:01:34]} 30. Ke2 {[%clk 0:00:45]}  Qd6 {[%clk 0:01:34]} 0-1


[Site "https://www.chess.com"]

[Event "Titled Tuesday Blitz April 18 Early 2023"]
[White "Sarana, Alexey"]
[Black "Mammadov, Zaur"]
[WhiteFideId "24133795"]
[BlackFideId "13401033"]
[WhiteElo "2714"]
[BlackElo "2441"]
[Result "0-1"]
[Round "06"]
[TimeControl "180+2"]
[Date "2023.04.18"]
[WhiteClock "0:00:01"]
[BlackClock "0:00:15"]

1. d4 {[%clk 0:03:00]}  d5 {[%clk 0:02:59]} 2. Nf3 {[%clk 0:03:00]}  Nf6 {[%clk 0:02:59]} 3. c4 {[%clk 0:03:00]}  dxc4 {[%clk 0:02:59]} 4. e3 {[%clk 0:03:01]}  e6 {[%clk 0:02:59]} 5. Bxc4 {[%clk 0:03:01]}  c5 {[%clk 0:02:59]} 6. O-O {[%clk 0:03:00]}  cxd4 {[%clk 0:03:00]} 7. exd4 {[%clk 0:03:00]}  Be7 {[%clk 0:03:00]} 8. Nc3 {[%clk 0:03:00]}  O-O {[%clk 0:03:01]} 9. Qd3 {[%clk 0:02:56]}  Nc6 {[%clk 0:02:59]} 10. a3 {[%clk 0:02:56]}  b6 {[%clk 0:02:45]} 11. Bg5 {[%clk 0:02:54]}  Bb7 {[%clk 0:02:44]} 12. Rfe1 {[%clk 0:02:51]}  Rc8 {[%clk 0:02:40]} 13. Rad1 {[%clk 0:02:50]}  h6 {[%clk 0:02:36]} 14. Bh4 {[%clk 0:02:46]}  Nh5 {[%clk 0:02:36]} 15. Bxe7 {[%clk 0:02:39]}  Nxe7 {[%clk 0:02:37]} 16. Ba2 {[%clk 0:02:34]}  Nf4 {[%clk 0:02:33]} 17. Qe3 {[%clk 0:02:33]}  Nxg2 {[%clk 0:02:15]} 18. Kxg2 {[%clk 0:02:33]}  Nf5 {[%clk 0:02:15]} 19. Qf4 {[%clk 0:02:33]}  Nh4+ {[%clk 0:02:06]} 20. Kf1 {[%clk 0:02:33]}  Nxf3 {[%clk 0:01:57]} 21. Re3 {[%clk 0:02:32]}  Ba6+ {[%clk 0:01:44]} 22. Kg2 {[%clk 0:02:28]}  Nh4+ {[%clk 0:01:44]} 23. Kg1 {[%clk 0:02:09]}  Ng6 {[%clk 0:01:40]} 24. Qg3 {[%clk 0:02:08]}  Bc4 {[%clk 0:01:35]} 25. Bb1 {[%clk 0:01:58]}  Nh4 {[%clk 0:01:22]} 26. Re5 {[%clk 0:01:43]}  Qf6 {[%clk 0:00:58]} 27. Ne4 {[%clk 0:01:17]}  Qf3 {[%clk 0:00:58]} 28. Nc3 {[%clk 0:00:27]}  Qxg3+ {[%clk 0:00:45]} 29. hxg3 {[%clk 0:00:28]}  Nf3+ {[%clk 0:00:46]} 30. Kg2 {[%clk 0:00:28]}  Nxe5 {[%clk 0:00:46]} 31. dxe5 {[%clk 0:00:29]}  Rfd8 {[%clk 0:00:47]} 32. Rc1 {[%clk 0:00:29]}  Rd2 {[%clk 0:00:43]} 33. Kg1 {[%clk 0:00:23]}  Bd5 {[%clk 0:00:37]} 34. Bc2 {[%clk 0:00:20]}  Bf3 {[%clk 0:00:31]} 35. Kf1 {[%clk 0:00:20]}  g5 {[%clk 0:00:30]} 36. Ke1 {[%clk 0:00:20]}  Rcd8 {[%clk 0:00:28]} 37. Be4 {[%clk 0:00:10]}  g4 {[%clk 0:00:28]} 38. b4 {[%clk 0:00:08]}  Kg7 {[%clk 0:00:27]} 39. b5 {[%clk 0:00:07]}  R8d4 {[%clk 0:00:27]} 40. Bc6 {[%clk 0:00:07]}  Rb2 {[%clk 0:00:23]} 41. Nb1 {[%clk 0:00:05]}  Rc2 {[%clk 0:00:14]} 42. Rxc2 {[%clk 0:00:01]}  Rd1# {[%clk 0:00:15]} 0-1


[Site "https://www.chess.com"]

[Event "Titled Tuesday Blitz April 18 Early 2023"]
[White "Ivanchuk, Vasyl"]
[Black "Rodshtein, Maxim"]
[WhiteFideId "14100010"]
[BlackFideId "2806851"]
[WhiteElo "2710"]
[BlackElo "2555"]
[Result "0-1"]
[Round "06"]
[TimeControl "180+2"]
[Date "2023.04.18"]
[WhiteClock "0:00:24"]
[BlackClock "0:00:20"]

1. e4 {[%clk 0:02:59]}  g6 {[%clk 0:02:56]} 2. d4 {[%clk 0:02:59]}  Bg7 {[%clk 0:02:56]} 3. c4 {[%clk 0:02:58]}  d6 {[%clk 0:02:56]} 4. Nc3 {[%clk 0:02:58]}  Nc6 {[%clk 0:02:54]} 5. Nge2 {[%clk 0:02:58]}  e5 {[%clk 0:02:53]} 6. Be3 {[%clk 0:02:58]}  Nf6 {[%clk 0:02:52]} 7. f3 {[%clk 0:02:54]}  O-O {[%clk 0:02:47]} 8. Qd2 {[%clk 0:02:54]}  a6 {[%clk 0:02:46]} 9. d5 {[%clk 0:02:47]}  Ne7 {[%clk 0:02:42]} 10. g4 {[%clk 0:02:45]}  h5 {[%clk 0:02:28]} 11. h3 {[%clk 0:02:42]}  Bd7 {[%clk 0:02:27]} 12. Bg5 {[%clk 0:02:35]}  b5 {[%clk 0:02:19]} 13. Ng3 {[%clk 0:02:34]}  Nh7 {[%clk 0:02:17]} 14. gxh5 {[%clk 0:02:23]}  Nxg5 {[%clk 0:02:17]} 15. Qxg5 {[%clk 0:02:24]}  Kh7 {[%clk 0:02:12]} 16. Rg1 {[%clk 0:02:09]}  Bh6 {[%clk 0:02:10]} 17. Qf6 {[%clk 0:02:09]}  Qe8 {[%clk 0:02:01]} 18. Nge2 {[%clk 0:02:02]}  g5 {[%clk 0:01:41]} 19. Rxg5 {[%clk 0:02:00]}  Ng8 {[%clk 0:01:34]} 20. Rxg8 {[%clk 0:01:59]}  Rxg8 {[%clk 0:01:34]} 21. Qh4 {[%clk 0:01:59]}  Bg5 {[%clk 0:01:29]} 22. Qf2 {[%clk 0:01:59]}  Qe7 {[%clk 0:01:28]} 23. Qh2 {[%clk 0:01:59]}  bxc4 {[%clk 0:01:25]} 24. Kd1 {[%clk 0:01:57]}  Rab8 {[%clk 0:01:24]} 25. Kc2 {[%clk 0:01:56]}  Be3 {[%clk 0:01:20]} 26. h4 {[%clk 0:01:54]}  Rg7 {[%clk 0:00:54]} 27. Bh3 {[%clk 0:01:52]}  Rbg8 {[%clk 0:00:53]} 28. Rh1 {[%clk 0:01:46]}  Kh6 {[%clk 0:00:48]} 29. Nd1 {[%clk 0:01:29]}  Bc5 {[%clk 0:00:47]} 30. Nec3 {[%clk 0:01:25]}  Bxh3 {[%clk 0:00:45]} 31. Qxh3 {[%clk 0:01:25]}  Rg2+ {[%clk 0:00:46]} 32. Kb1 {[%clk 0:01:24]}  Qf6 {[%clk 0:00:46]} 33. Rf1 {[%clk 0:01:12]}  Qf4 {[%clk 0:00:45]} 34. a3 {[%clk 0:00:59]}  Bd4 {[%clk 0:00:44]} 35. Qd7 {[%clk 0:00:54]}  Rb8 {[%clk 0:00:34]} 36. Qxc7 {[%clk 0:00:51]}  Rbxb2+ {[%clk 0:00:23]} 37. Nxb2 {[%clk 0:00:50]}  Rxb2+ {[%clk 0:00:23]} 38. Ka1 {[%clk 0:00:28]}  Bxc3 {[%clk 0:00:21]} 39. Qxd6+ {[%clk 0:00:24]}  Kxh5 {[%clk 0:00:20]} 0-1


[Site "https://www.chess.com"]